bitfinex/quotes_ETHUSD_20240716
["timestamp","ask_amount","ask_price","bid_price","bid_amount"]
[1721173260310,2.8963,3452.7,3452.0,0.06817298]
[1721173260816,2.89636,3452.6,3452.0,0.06817298]
[1721173261016,2.89636,3452.6,3452.0,0.65438828]
[1721173261201,3.0,3452.8,3452.0,0.65438828]
[1721173261202,2.89634,3452.7,3452.0,0.65438828]
[1721173261419,2.89642,3452.6,3452.0,0.65438828]
[1721173261731,2.89642,3452.6,3452.0,0.06817298]
[1721173262026,2.89653,3452.4,3452.0,0.06817298]
[1721173262224,2.89642,3452.6,3452.0,0.06817298]
[1721173262391,2.89642,3452.6,3451.7,2.89708]
[1721173262595,2.89642,3452.6,3452.1,0.06833588]
[1721173262792,3.0,3452.8,3452.2,2.89664]
[1721173262994,3.0,3452.9,3452.2,0.06833588]
[1721173263217,2.89626,3452.8,3452.2,0.06833588]
[1721173263991,3.0,3453.0,3452.2,0.06833588]
[1721173264284,2.89659,3452.4,3451.6,5.15194]
[1721173264608,2.89659,3452.4,3451.7,2.96358848]
[1721173264810,2.89659,3452.4,3451.8,2.89702]
[1721173265524,2.89659,3452.4,3451.9,0.06654848]
[1721173266196,2.89637,3452.6,3451.9,0.06654848]
[1721173266396,2.89637,3452.6,3452.0,0.29635785]
[1721173266397,5.79281,3452.6,3452.0,0.29635785]
[1721173266702,2.89646,3452.5,3452.0,0.36286696]
[1721173267625,2.89654,3452.4,3452.0,0.36286696]
[1721173267805,2.89654,3452.4,3452.0,0.06650911]
[1721173268118,2.89663,3452.3,3451.6,5.15194]
[1721173268324,2.89663,3452.3,3451.6,8.04908]
[1721173268528,2.89663,3452.3,3451.7,0.06640708]
[1721173268688,2.89663,3452.3,3451.7,2.96351708]
[1721173269210,2.89663,3452.3,3451.7,3.77508179]
[1721173270192,2.89663,3452.3,3451.7,6.67214179]
[1721173270391,2.8964,3452.6,3451.7,6.67214179]
[1721173270611,2.89654,3452.4,3451.7,6.67214179]
[1721173270819,2.89622,3452.8,3452.1,2.89674]
[1721173271041,3.0,3452.7,3452.1,2.89674]
[1721173271341,3.0,3452.7,3452.2,0.06654353]
[1721173271642,3.0,3452.7,3452.3,2.311]
[1721173271839,3.0,3452.9,3452.3,2.311]
[1721173272045,5.89614,3452.9,3452.3,2.311]
[1721173272346,5.89614,3452.9,3452.4,0.06647603]
[1721173272644,2.89628,3452.7,3452.4,0.06647603]
[1721173272997,3.0,3452.6,3452.1,2.89676]
[1721173273192,5.89627,3452.8,3452.0,2.89682]
[1721173273441,5.89627,3452.8,3452.2,0.06637226]
[1721173273632,5.89627,3452.8,3452.1,2.89675]
[1721173273794,2.89644,3452.6,3452.3,0.06637226]
[1721173274141,2.89644,3452.6,3452.4,0.06637226]
[1721173274524,2.89644,3452.6,3452.0,2.89686]
[1721173274725,2.89644,3452.6,3452.5,0.06634096]
[1721173274893,2.89644,3452.6,3452.1,0.579375]
[1721173274894,5.89644,3452.6,3452.0,2.89686]
[1721173275099,3.0,3452.6,3452.1,0.06634096]
[1721173275333,5.89629,3452.7,3452.1,0.06634096]
[1721173275937,3.0,3452.7,3452.2,2.89669]
[1721173276242,3.0,3452.7,3452.2,3.1929931]
[1721173276444,3.0,3452.8,3452.2,3.1929931]
[1721173276736,3.0,3452.8,3452.3,0.06634096]
[1721173276955,2.89614,3452.9,3452.3,0.06634096]
[1721173277103,3.0,3452.8,3452.2,3.1929931]
[1721173277302,3.0,3452.8,3452.4,2.3595]
[1721173277700,3.0,3452.8,3452.5,0.06627025]
[1721173278195,5.89622,3452.8,3452.5,0.06627025]
[1721173278399,5.89622,3452.8,3452.2,2.89669]
[1721173278606,5.89622,3452.8,3452.6,0.06626422]
[1721173278935,2.89634,3452.7,3452.0,5.25629]
[1721173279250,3.0,3452.6,3452.1,0.525629]
[1721173279551,3.0,3452.6,3452.2,2.8967]
[1721173279712,5.89629,3452.7,3452.0,2.3595]
[1721173279912,2.89629,3452.7,3451.7,3.70865471]
[1721173280112,5.4559,3452.8,3451.6,2.3157]
[1721173280113,2.89674,3452.2,3451.6,2.3157]
[1721173280851,2.89674,3452.2,3451.6,5.21288]
[1721173281223,2.89674,3452.2,3451.6,2.3157]
[1721173281551,2.89669,3452.3,3451.6,5.21284]
[1721173282054,2.89672,3452.2,3451.6,5.21284]
[1721173282213,2.89672,3452.2,3451.4,2.89734]
[1721173282614,2.89678,3452.1,3451.4,2.89734]
[1721173282827,2.89678,3452.1,3451.4,3.958295]
[1721173283226,2.89687,3452.0,3451.4,3.958295]
[1721173284923,2.89687,3452.0,3451.5,0.06559327]
[1721173286856,2.89687,3452.0,3451.5,2.96287327]
[1721173287067,2.89666,3452.3,3451.5,2.96287327]
[1721173287224,2.89666,3452.3,3451.6,0.69211683]
[1721173287428,2.89684,3452.1,3451.6,0.69211683]
[1721173287625,2.89684,3452.1,3451.7,0.06553265]
[1721173288428,2.89684,3452.1,3451.5,2.89728]
[1721173288638,2.89684,3452.1,3451.8,0.06553265]
[1721173288871,2.89684,3452.1,3451.5,2.89728]
[1721173289169,2.89683,3452.1,3451.5,3.8174555]
[1721173289360,2.89683,3452.1,3451.6,0.06549728]
[1721173297577,5.79369,3452.1,3451.6,0.06549728]
[1721173297752,2.89683,3452.1,3451.6,0.06549728]
[1721173298342,2.89683,3452.1,3451.4,2.89735]
[1721173298666,2.89683,3452.1,3451.7,0.06525994]
[1721173298863,2.89683,3452.1,3451.5,2.89727]
[1721173299062,5.7937,3452.1,3451.8,0.06522661]
[1721173299376,5.7937,3452.1,3451.4,2.89737]
[1721173299545,2.89696,3451.9,3451.3,2.89738]
[1721173299882,2.89696,3451.9,3451.5,0.06519931]
[1721173300053,2.89696,3451.9,3451.4,0.36250788]
[1721173300543,2.89696,3451.9,3451.5,0.06519931]
[1721173302981,2.89672,3452.2,3451.5,2.96241931]
[1721173303178,2.89672,3452.2,3451.5,3.81925003]
[1721173303774,2.89654,3452.4,3451.5,3.81925003]
[1721173304014,10.35,3452.6,3451.9,2.4782]
[1721173304015,3.0,3452.3,3451.9,2.4782]
[1721173304178,3.0,3452.5,3451.9,5.3751]
[1721173304499,3.0,3452.5,3451.9,6.4031]
[1721173304657,5.89651,3452.5,3452.0,0.06510419]
[1721173304861,7.72044037,3452.5,3452.0,0.06510419]
[1721173305058,5.89651,3452.5,3452.0,0.06510419]
[1721173305509,5.89651,3452.5,3452.0,1.00164161]
[1721173305672,3.0,3452.5,3452.3,1.028]
[1721173305882,15.33597,3453.1,3452.3,1.028]
[1721173305883,12.06990037,3453.1,3452.3,3.92455]
[1721173306097,12.06990037,3453.1,3452.7,1.028]
[1721173306098,7.35,3453.1,3452.7,1.028]
[1721173306397,7.35,3453.1,3452.6,5.16446]
[1721173306398,7.35,3453.1,3453.0,2.89603]
[1721173306598,2.89537,3453.8,3453.0,2.89603]
[1721173306974,12.06913037,3454.0,3453.1,0.06500246]
[1721173307334,7.35,3454.0,3453.3,2.89576]
[1721173307509,7.35,3454.0,3453.4,0.58566325]
[1721173307799,7.35,3454.0,3453.3,2.89576]
[1721173308605,7.35,3454.0,3452.9,2.89607]
[1721173308926,2.89552,3453.7,3453.0,0.06463128]
[1721173309124,2.89552,3453.7,3452.8,2.89617]
[1721173309332,7.35,3454.0,3452.6,5.16446]
[1721173309333,2.89562,3453.5,3452.6,2.2681]
[1721173309494,2.89576,3453.4,3452.6,5.16446]
[1721173309695,2.89546,3453.7,3452.8,2.89618]
[1721173310009,2.89597,3453.1,3452.2,5.18383]
[1721173310205,7.35,3453.5,3452.9,0.06460515]
[1721173310410,2.89592,3453.2,3452.3,2.89661]
[1721173310742,2.89573,3453.4,3452.4,0.06460515]
[1721173310899,14.55206572,3453.9,3452.2,2.2872]
[1721173311119,3.0,3453.9,3453.1,2.89593]
[1721173311408,2.89503,3454.2,3453.2,0.06404577]
[1721173311631,2.89512,3454.1,3453.3,2.89574]
[1721173311838,7.35,3454.3,3453.6,2.89552]
[1721173312135,10.24494,3454.3,3453.6,2.89552]
[1721173312510,10.24494,3454.3,3453.7,0.06404577]
[1721173312730,10.24494,3454.3,3453.6,2.89552]
[1721173312941,2.89504,3454.2,3453.4,2.89561]
[1721173313095,5.89504,3454.2,3453.4,3.474755]
[1721173313304,5.89504,3454.2,3453.5,0.06404577]
[1721173315340,2.89511,3454.1,3453.5,0.06404577]
[1721173315508,2.8952,3454.0,3453.5,0.06404577]
[1721173315708,2.8952,3454.0,3453.3,2.89576]
[1721173316037,2.8952,3454.0,3453.4,0.06404577]
[1721173316194,2.89527,3453.9,3453.4,0.06404577]
[1721173316649,2.89527,3453.9,3453.2,2.89584]
[1721173316854,3.0,3454.2,3453.6,2.89545]
[1721173317153,2.89488,3454.4,3453.7,0.06404577]
[1721173317154,3.0,3454.3,3453.7,0.06404577]
[1721173317640,3.0,3454.3,3453.7,2.95948577]
[1721173317931,3.0,3454.3,3453.7,3.54500335]
[1721173318367,3.0,3454.3,3453.7,0.64956335]
[1721173318660,7.35,3454.6,3453.7,0.64956335]
[1721173318661,7.35,3454.6,3454.0,2.89518]
[1721173318836,2.89438,3455.0,3454.0,2.89518]
[1721173318837,2.8946,3454.7,3454.0,2.89518]
[1721173319000,2.8946,3454.7,3454.1,0.06374622]
[1721173320756,7.35,3455.0,3454.1,2.95884622]
[1721173320900,3.0,3454.9,3454.1,2.95884622]
[1721173321101,7.35,3455.0,3454.3,2.477]
[1721173321345,7.35,3455.0,3454.3,5.37189]
[1721173321635,10.24435,3455.0,3454.4,0.06374622]
[1721173322236,7.35,3455.0,3454.4,2.89485]
[1721173322637,10.24436,3455.0,3454.3,2.477]
[1721173322806,10.24436,3455.0,3454.3,5.37188]
[1721173323006,10.24436,3455.0,3454.4,0.06374622]
[1721173323250,10.24436,3455.0,3454.4,2.95859622]
[1721173324239,10.24436,3455.0,3454.4,0.06374622]
[1721173324406,2.89436,3455.0,3454.4,2.95858622]
[1721173324607,2.89425,3455.2,3454.4,3.8501741]
[1721173324842,5.89429,3455.1,3454.4,3.8501741]
[1721173325045,5.89429,3455.1,3454.4,2.95858622]
[1721173325339,2.89436,3455.0,3454.4,2.95858622]
[1721173326318,3.0,3455.1,3454.5,0.05789037]
[1721173326639,10.24402,3455.4,3454.8,2.89449]
[1721173326640,3.0,3455.3,3454.8,2.89449]
[1721173327154,3.0,3455.4,3454.8,2.89449]
[1721173327305,3.0,3455.4,3454.9,0.06374622]
[1721173327620,3.0,3455.4,3454.8,2.89449]
[1721173327824,4.117631,3455.4,3454.6,2.89461]
[1721173328159,2.89421,3455.2,3454.9,0.06329896]
[1721173328311,2.89421,3455.2,3454.6,2.89461]
[1721173328510,3.0,3455.1,3455.0,0.06326163]
[1721173328732,3.0,3455.1,3454.6,2.89461]
[1721173328938,3.0,3455.1,3455.0,0.06325761]
[1721173329538,3.0,3455.1,3455.0,0.06326766]
[1721173330342,3.0,3455.1,3454.6,2.89461]
[1721173330639,3.0,3455.1,3454.7,0.06326766]
[1721173331050,3.0,3455.1,3454.4,2.89478]
[1721173331360,3.0,3455.1,3454.8,0.06326766]
[1721173331361,2.89451,3454.9,3454.8,0.06326766]
[1721173331521,2.89451,3454.9,3454.1,2.8951]
[1721173331846,2.89452,3454.8,3454.2,0.06326766]
[1721173332016,5.78912,3454.8,3454.2,0.06326766]
[1721173332427,2.8946,3454.7,3454.2,0.06326766]
[1721173334042,2.89471,3454.6,3454.2,0.06326766]
[1721173334254,2.89471,3454.6,3453.8,5.3857]
[1721173334428,2.89471,3454.6,3454.3,0.06115873]
[1721173334610,2.89485,3454.4,3454.3,0.06115873]
[1721173334818,2.89485,3454.4,3453.4,2.89565]
[1721173334819,2.89507,3454.2,3453.4,2.4902]
[1721173335061,2.89521,3454.0,3453.4,2.4902]
[1721173335209,3.0,3454.6,3453.4,2.4902]
[1721173335210,5.8947,3454.6,3453.5,0.06115873]
[1721173335414,5.8947,3454.6,3453.8,2.89535]
[1721173335415,2.89477,3454.5,3453.8,2.89535]
[1721173335739,3.0,3454.4,3453.8,2.89535]
[1721173335940,3.0,3454.4,3453.9,0.06115873]
[1721173335941,5.89486,3454.4,3453.9,0.06115873]
[1721173336256,9.7832,3454.7,3453.9,0.06115873]
[1721173336257,2.89474,3454.6,3453.9,0.06115873]
[1721173336416,10.24464,3454.7,3453.9,0.06115873]
[1721173336417,5.8948,3454.5,3453.9,0.06115873]
[1721173336610,5.8948,3454.5,3453.8,2.89535]
[1721173336816,2.89486,3454.4,3453.8,2.89535]
[1721173337154,5.8948,3454.5,3453.8,2.89535]
[1721173337559,5.8948,3454.5,3454.0,2.89513]
[1721173337560,3.0,3454.5,3454.0,2.89513]
[1721173337711,3.0,3454.5,3454.1,0.0612632]
[1721173338050,3.0,3454.6,3454.1,2.9563632]
[1721173338417,3.0,3454.7,3454.1,2.9563632]
[1721173338618,2.89453,3454.8,3454.1,2.9563632]
[1721173339756,3.0,3455.2,3454.5,2.8947]
[1721173340046,3.0,3455.1,3454.7,2.89454]
[1721173340221,3.0,3455.3,3454.7,2.89454]
[1721173340734,2.89428,3455.1,3454.8,0.0613295]
[1721173340936,3.589428,3455.0,3454.8,0.0613295]
[1721173341108,3.589428,3455.0,3454.5,2.8947]
[1721173341314,3.0,3455.0,3454.9,0.06128329]
[1721173341518,3.0,3455.0,3454.5,2.8947]
[1721173341736,3.0,3455.0,3454.9,0.06128329]
[1721173341737,5.89435,3455.0,3454.9,0.06128329]
[1721173341955,2.89445,3454.9,3454.2,2.2655]
[1721173342253,2.89445,3454.9,3453.9,2.89522]
[1721173342254,2.89462,3454.7,3453.9,2.89522]
[1721173342452,2.89462,3454.7,3453.7,5.30017]
[1721173342453,2.8947,3454.6,3453.7,5.30017]
[1721173342770,2.89479,3454.5,3453.7,2.4048]
[1721173343053,3.0,3454.5,3453.4,2.89568]
[1721173343263,2.89516,3454.1,3453.3,2.4027]
[1721173343412,2.89499,3454.3,3453.3,2.4027]
[1721173343617,2.89542,3453.8,3452.9,5.29881]
[1721173343865,2.89548,3453.7,3452.9,5.29881]
[1721173344043,2.89563,3453.5,3452.7,2.89626]
[1721173344367,2.89563,3453.5,3452.8,2.89619]
[1721173344510,2.89578,3453.3,3452.7,0.819525]
[1721173344712,2.89578,3453.3,3452.9,0.05537974]
[1721173344968,2.89578,3453.3,3452.2,2.89669]
[1721173344969,2.89591,3453.2,3452.2,5.29209]
[1721173345116,2.89591,3453.2,3453.0,0.05537974]
[1721173345445,2.89591,3453.2,3453.1,0.05546011]
[1721173345654,2.89591,3453.2,3452.4,2.89647]
[1721173345860,2.89591,3453.2,3453.1,0.05554654]
[1721173346015,2.89591,3453.2,3452.5,3.715296]
[1721173346218,3.0,3453.7,3453.1,0.05554654]
[1721173346430,5.89558,3453.6,3452.8,5.29158]
[1721173346647,2.89558,3453.6,3453.2,0.0555767]
[1721173346851,3.0,3453.5,3452.8,5.29158]
[1721173347161,3.0,3453.9,3453.3,0.0555767]
[1721173347369,3.0,3453.9,3453.1,2.89588]
[1721173347570,2.89537,3453.8,3452.9,3.714837]
[1721173347726,2.89537,3453.8,3453.2,0.05555458]
[1721173347923,2.89537,3453.8,3453.0,2.89601]
[1721173347924,3.0,3453.7,3453.0,2.89601]
[1721173348122,3.0,3453.7,3453.3,0.05555458]
[1721173348323,3.0,3453.7,3453.0,2.89601]
[1721173348699,5.89544,3453.7,3452.9,0.818787]
[1721173348874,5.3381,3453.7,3453.1,0.05555458]
[1721173349021,2.3381,3453.7,3452.6,2.89634]
[1721173349221,2.89573,3453.4,3453.2,0.05555458]
[1721173349445,2.89573,3453.4,3452.7,2.89628]
[1721173349642,2.89573,3453.4,3453.3,0.05555458]
[1721173349841,3.70868,3453.4,3452.7,2.89628]
[1721173350162,9.8395,3454.0,3453.3,0.05555458]
[1721173350378,9.8395,3454.0,3452.8,2.89619]
[1721173350379,5.89529,3453.9,3452.8,2.89619]
[1721173350672,5.89529,3453.9,3453.0,2.3398]
[1721173350957,5.89529,3453.9,3453.1,2.89594]
[1721173351163,3.0,3453.9,3453.2,3.71459946]
[1721173351370,3.0,3453.9,3453.2,3.77015404]
[1721173351674,2.89536,3453.8,3453.2,0.05555458]
[1721173351849,2.89536,3453.8,3453.0,2.3398]
[1721173352160,2.89536,3453.8,3453.3,0.05555458]
[1721173352361,5.89527,3453.9,3453.1,2.89587]
[1721173352592,2.89538,3453.8,3453.0,5.23581]
[1721173352763,2.89538,3453.8,3453.2,0.05555458]
[1721173352953,2.89538,3453.8,3453.0,2.89601]
[1721173353155,2.89544,3453.7,3453.0,2.89601]
[1721173353491,2.89544,3453.7,3453.1,0.05550433]
[1721173353795,5.36524,3453.6,3452.8,2.89613]
[1721173353946,5.36524,3453.6,3453.2,0.05563696]
[1721173354293,2.89569,3453.4,3453.3,0.05563696]
[1721173354449,2.89569,3453.4,3452.7,2.89627]
[1721173354644,2.8958,3453.3,3452.6,2.3398]
[1721173354897,2.8958,3453.3,3452.5,2.89638]
[1721173356264,2.89587,3453.2,3452.5,2.89638]
[1721173356651,2.89614,3452.9,3452.2,2.484]
[1721173356961,0.826112,3453.3,3452.4,2.89649]
[1721173356962,2.89595,3453.1,3452.4,2.89649]
[1721173358066,2.89595,3453.1,3452.5,2.89643]
[1721173358250,2.89574,3453.4,3452.5,2.89643]
[1721173358452,3.0,3453.9,3452.7,2.3215]
[1721173358758,2.89555,3453.6,3452.9,2.89606]
[1721173358959,3.0,3453.5,3452.9,2.89606]
[1721173359372,3.0,3453.5,3453.1,2.89589]
[1721173359584,5.89533,3453.9,3453.1,2.89589]
[1721173359793,5.89533,3453.9,3452.9,2.89606]
[1721173359794,2.89537,3453.8,3452.9,2.89605]
[1721173359961,3.0,3453.7,3452.9,2.89605]
[1721173360675,3.0,3453.7,3453.1,2.89592]
[1721173361205,3.0,3453.7,3453.2,0.05572944]
[1721173361485,2.89564,3453.5,3453.2,0.05572944]
[1721173361794,3.485204,3453.5,3452.6,2.89635]
[1721173362001,5.89577,3453.4,3452.6,2.8963]
[1721173362167,5.89577,3453.4,3452.7,2.89628]
[1721173362894,2.3622,3453.3,3452.4,2.89648]
[1721173363101,5.89562,3453.5,3452.6,2.89631]
[1721173363290,5.89562,3453.5,3452.7,0.579279]
[1721173363459,3.0,3453.5,3452.9,2.89605]
[1721173363658,2.89523,3454.0,3453.0,0.05791645]
[1721173363859,5.25728,3454.2,3453.4,2.89568]
[1721173365417,2.3622,3454.2,3453.5,2.8956]
[1721173365699,2.3622,3454.2,3453.6,0.579132]
[1721173365907,5.25723,3454.2,3453.6,0.579132]
[1721173366622,5.25723,3454.2,3453.5,2.8956]
[1721173366773,5.25723,3454.2,3453.3,2.89572]
[1721173366973,5.25723,3454.2,3453.4,2.89568]
[1721173367502,5.89496,3454.3,3453.5,5.17639]
[1721173367707,3.0,3454.3,3453.6,2.8955]
[1721173368014,3.0,3454.3,3453.7,0.807189]
[1721173368771,5.89494,3454.3,3453.7,0.807189]
[1721173368974,5.89494,3454.3,3453.6,2.8955]
[1721173368975,3.0,3454.3,3453.6,2.8955]
[1721173369304,3.0,3454.3,3453.7,0.0557656]
[1721173369489,3.0,3454.3,3453.7,2.9511856]
[1721173369814,5.89487,3454.4,3453.7,3.76394316]
[1721173370171,3.0,3454.4,3453.7,3.76394316]
[1721173370402,5.89486,3454.4,3453.7,2.9511856]
[1721173370970,2.89494,3454.3,3453.7,2.9511856]
[1721173371169,3.0,3454.2,3453.7,2.9511856]
[1721173372814,3.0,3454.2,3453.7,0.0557656]
[1721173373115,5.89503,3454.2,3453.5,2.89559]
[1721173373407,0.878997,3454.1,3453.8,0.0557656]
[1721173373620,5.89503,3454.2,3453.5,2.89559]
[1721173373819,5.89503,3454.2,3453.9,0.0557656]
[1721173374016,5.89503,3454.2,3453.5,2.89559]
[1721173374519,5.89503,3454.2,3453.6,0.0557656]
[1721173374671,6.774027,3454.2,3453.6,0.0557656]
[1721173374871,2.89511,3454.1,3453.6,0.0557656]
[1721173376225,7.35,3454.8,3453.7,2.2808]
[1721173376412,5.89466,3454.7,3454.0,2.89512]
[1721173377177,5.89466,3454.7,3454.1,0.05565307]
[1721173378127,3.0,3454.7,3454.2,2.89496]
[1721173378622,3.0,3454.7,3454.3,0.05565307]
[1721173378923,3.0,3454.7,3454.3,2.8949]
[1721173379215,3.0,3454.7,3454.4,0.05565307]
[1721173379517,3.0,3454.7,3454.3,2.8949]
[1721173379715,3.0,3454.9,3454.5,0.0554139]
[1721173379925,3.0,3454.9,3454.3,2.8949]
[1721173380423,3.0,3454.9,3454.4,0.0554139]
[1721173380591,5.89444,3454.9,3454.4,0.0554139]
[1721173380797,5.89444,3454.9,3454.2,2.895]
[1721173381108,6.773324,3454.9,3454.2,2.895]
[1721173381313,2.8946,3454.8,3454.3,0.0552707]
[1721173381615,2.8946,3454.8,3453.8,2.89532]
[1721173381616,5.89462,3454.7,3454.0,2.89518]
[1721173381822,2.89469,3454.6,3453.9,2.89526]
[1721173382115,2.89498,3454.3,3454.0,0.0552707]
[1721173382314,2.89498,3454.3,3453.5,2.89554]
[1721173382502,2.89498,3454.3,3454.1,0.0552707]
[1721173382704,2.89498,3454.3,3453.5,2.89555]
[1721173382905,2.89498,3454.3,3454.2,0.0552707]
[1721173383110,3.473962,3454.3,3453.5,2.89553]
[1721173383316,3.473962,3454.3,3454.2,0.0552707]
[1721173383622,2.89498,3454.3,3453.6,2.89547]
[1721173383923,2.89498,3454.3,3453.7,0.0552707]
[1721173385381,2.89498,3454.3,3453.7,2.9507107]
[1721173386714,2.89491,3454.4,3453.7,2.9507107]
[1721173386925,2.895,3454.3,3453.7,0.0552707]
[1721173389901,2.89503,3454.2,3453.7,0.0552707]
[1721173390110,2.89503,3454.2,3453.4,2.89567]
[1721173390111,2.89503,3454.2,3453.6,2.89547]
[1721173390727,2.89503,3454.2,3453.7,0.0552707]
[1721173390957,2.89532,3453.9,3453.7,0.0552707]
[1721173391136,2.89503,3454.2,3453.7,0.0552707]
[1721173391137,9.080252,3453.8,3453.7,0.0552707]
[1721173391428,2.89547,3453.7,3453.0,2.89603]
[1721173391604,2.89547,3453.7,3453.1,0.04990213]
[1721173391816,3.0,3453.8,3453.1,0.10781996]
[1721173392000,5.89514,3454.1,3453.4,2.3134]
[1721173392433,2.8952,3454.0,3453.5,0.04829084]
[1721173392639,5.89514,3454.1,3453.5,0.04829084]
[1721173393304,2.89521,3454.0,3453.5,0.04829084]
[1721173393635,3.0,3453.9,3453.5,0.04829084]
[1721173394330,3.0,3453.9,3453.4,2.3134]
[1721173395244,3.0,3454.1,3453.5,0.520917]
[1721173395396,5.89511,3454.1,3453.4,2.3134]
[1721173396903,2.8952,3454.0,3453.4,2.3134]
[1721173397106,3.0,3453.9,3452.6,2.89634]
[1721173397343,2.89563,3453.5,3452.8,2.89617]
[1721173398450,2.89571,3453.4,3452.8,2.89617]
[1721173398770,2.89571,3453.4,3452.7,2.89628]
[1721173398912,2.89571,3453.4,3452.7,3.58239102]
[1721173400002,2.89544,3453.7,3452.5,2.3517]
[1721173400402,3.0,3453.9,3452.5,5.2481]
[1721173400403,5.89531,3453.9,3452.5,5.2481]
[1721173400601,2.89589,3453.2,3452.5,5.2481]
[1721173401407,2.89589,3453.2,3452.6,2.89635]
[1721173402861,3.0,3453.9,3452.8,2.89619]
[1721173403021,0.72065234,3453.8,3452.8,2.89619]
[1721173403346,2.89571,3453.4,3452.8,2.89619]
[1721173403553,2.89571,3453.4,3452.9,0.04236957]
[1721173406519,2.8956,3453.6,3452.9,0.04236957]
[1721173406723,2.8956,3453.6,3452.8,2.89619]
[1721173406925,2.8956,3453.6,3452.9,0.579254]
[1721173407142,2.8956,3453.6,3452.9,0.62162357]
[1721173407733,2.89562,3453.5,3453.0,2.3053]
[1721173408257,2.89562,3453.5,3453.1,0.04236957]
[1721173408817,3.0,3453.9,3453.1,0.04236957]
[1721173408818,3.0,3453.9,3453.2,2.8958]
[1721173409045,3.0,3453.9,3453.4,2.3053]
[1721173409355,3.0,3453.9,3453.5,0.04236957]
[1721173409553,3.0,3453.8,3453.5,0.04236957]
[1721173409760,3.0,3454.0,3453.5,0.04236957]
[1721173409957,3.0,3454.1,3453.5,0.04236957]
[1721173410252,5.89517,3454.1,3453.5,0.04236957]
[1721173410620,2.89525,3454.0,3453.5,0.04236957]
[1721173411029,3.0,3453.9,3453.5,0.04236957]
[1721173412061,9.17181407,3454.2,3453.6,2.3638]
[1721173412268,7.35,3454.2,3453.7,2.89544]
[1721173412427,2.89496,3454.3,3453.7,2.89544]
[1721173412428,2.89496,3454.3,3453.8,0.53015334]
[1721173412626,2.89496,3454.3,3453.9,0.04229339]
[1721173412869,2.8948,3454.5,3453.9,0.04229339]
[1721173413037,2.89491,3454.4,3453.9,0.04229339]
[1721173413223,2.89467,3454.7,3453.9,2.93750339]
[1721173413427,5.89473,3454.6,3453.9,3.52064906]
[1721173415150,2.89473,3454.6,3454.0,2.89519]
[1721173415324,2.89463,3454.7,3454.1,5.17649]
[1721173415529,2.8945,3454.9,3454.2,0.86969086]
[1721173415876,2.89452,3454.8,3454.2,0.91175376]
[1721173416729,2.89439,3455.0,3454.2,3.80671376]
[1721173417793,2.89439,3455.0,3454.3,2.89493]
[1721173418135,2.89439,3455.0,3454.4,0.04204687]
[1721173418930,2.89444,3454.9,3454.5,0.67016277]
[1721173419151,2.89444,3454.9,3454.3,2.89493]
[1721173419528,2.89444,3454.9,3454.4,0.04204687]
[1721173419730,2.89444,3454.9,3454.3,2.89493]
[1721173419930,2.89444,3454.9,3454.5,0.04204687]
[1721173420131,2.89444,3454.9,3454.3,2.89493]
[1721173420380,2.89444,3454.9,3454.6,0.04204687]
[1721173420672,2.89477,3454.6,3453.7,5.39027]
[1721173420970,2.89479,3454.5,3453.7,5.39027]
[1721173421167,2.89479,3454.5,3453.7,5.39026]
[1721173421337,2.89479,3454.5,3453.8,2.89536]
[1721173421531,2.89486,3454.4,3453.7,2.4949]
[1721173421732,2.89486,3454.4,3453.7,5.929328]
[1721173421934,2.89477,3454.6,3453.9,2.89526]
[1721173422259,2.89455,3454.8,3454.1,2.89506]
[1721173422448,2.89436,3455.0,3454.2,2.89496]
[1721173422766,5.89449,3454.9,3454.2,2.89496]
[1721173423142,5.89449,3454.9,3454.3,2.89493]
[1721173423356,5.89449,3454.9,3454.4,2.4877]
[1721173428178,1.81881639,3455.5,3454.8,2.89445]
[1721173428383,2.89381,3455.7,3454.9,5.26296]
[1721173428586,2.89381,3455.7,3454.9,5.799105]
[1721173428745,2.89363,3455.9,3455.0,2.89434]
[1721173428945,2.89369,3455.8,3455.1,2.89427]
[1721173429675,2.89377,3455.7,3455.1,2.89427]
[1721173430055,2.89377,3455.7,3454.9,2.904745]
[1721173430258,2.89377,3455.7,3455.0,2.89429]
[1721173432851,2.89369,3455.8,3455.0,2.89429]
[1721173433190,7.35,3456.1,3454.4,2.89479]
[1721173433191,7.35,3456.1,3455.1,2.52488328]
[1721173433392,7.35,3456.1,3455.9,2.89357]
[1721173433588,2.89286,3456.8,3456.0,2.89351]
[1721173433889,2.89286,3456.8,3456.1,2.89342]
[1721173434087,2.89268,3457.0,3456.2,2.89333]
[1721173434549,2.89276,3456.9,3456.2,2.89333]
[1721173434748,2.89276,3456.9,3456.3,0.03843644]
[1721173436349,2.89263,3457.1,3456.3,0.03843644]
[1721173436660,3.0,3457.0,3456.3,2.93168644]
[1721173437056,3.0,3457.0,3456.4,2.89317]
[1721173437257,8.33568,3457.3,3456.4,2.89317]
[1721173437457,8.33568,3457.3,3456.5,0.03821225]
[1721173437764,8.33568,3457.3,3456.5,2.93128225]
[1721173438149,8.33568,3457.3,3456.6,2.89299]
[1721173438150,5.4432,3457.3,3456.6,2.89299]
[1721173438350,2.4263,3457.8,3456.7,0.82908723]
[1721173438565,5.31831,3457.8,3456.9,2.89271]
[1721173438763,2.4263,3457.8,3457.0,2.8926]
[1721173438966,2.89173,3458.2,3456.8,2.4666]
[1721173439248,2.89173,3458.2,3457.3,2.89241]
[1721173441169,2.89265,3457.1,3456.0,5.36621]